bitfinex/quotes_BTCUSD_20220201
["timestamp","ask_amount","ask_price","bid_price","bid_amount"]
[1643686527280,0.1,38520.0,38517.0,0.00128482]
[1643686527483,0.32789937,38519.0,38517.0,0.00128482]
[1643686527686,0.064935,38518.0,38517.0,0.00128482]
[1643686527883,0.164935,38518.0,38515.0,0.132956]
[1643686528184,0.78013551,38518.0,38516.0,0.00128485]
[1643686529038,0.78013551,38518.0,38515.0,0.132956]
[1643686529239,0.78013551,38518.0,38515.0,0.13424094]
[1643686529844,0.45,38516.0,38515.0,0.00438494]
[1643686530043,1.95249513,38516.0,38515.0,0.00438494]
[1643686530247,2.27744818,38516.0,38515.0,0.00438494]
[1643686530441,2.27744818,38516.0,38515.0,0.0031]
[1643686530641,2.65075682,38516.0,38515.0,0.0031]
[1643686530843,2.47580377,38516.0,38515.0,0.0031]
[1643686531240,2.65076486,38516.0,38515.0,0.0031]
[1643686531442,2.60569077,38516.0,38515.0,0.0031]
[1643686531647,2.7806702,38516.0,38515.0,0.0031]
[1643686531843,2.61647148,38516.0,38515.0,0.0031]
[1643686532244,2.23390406,38516.0,38515.0,0.0031]
[1643686532443,1.86059542,38516.0,38515.0,0.0031]
[1643686532644,1.46249542,38516.0,38515.0,0.0031]
[1643686533883,1.48363209,38516.0,38515.0,0.0031]
[1643686535688,0.25359375,38513.0,38512.0,0.0031]
[1643686535888,0.30549375,38513.0,38512.0,0.0031]
[1643686536089,0.40549375,38513.0,38512.0,0.0031]
[1643686536291,0.16376995,38513.0,38512.0,0.0031]
[1643686537127,0.06376995,38513.0,38512.0,0.0031]
[1643686537528,0.16376995,38513.0,38512.0,0.0031]
[1643686538734,0.06376995,38513.0,38512.0,0.0031]
[1643686541677,0.01186995,38513.0,38512.0,0.0031]
[1643686545835,0.26977514,38513.0,38512.0,0.0031]
[1643686546032,0.26977514,38513.0,38510.0,0.068039]
[1643686546235,0.9019,38512.0,38511.0,0.00150663]
[1643686546435,0.96685,38512.0,38511.0,0.00150663]
[1643686546633,1.24180957,38512.0,38511.0,0.00150663]
[1643686547134,1.48148485,38512.0,38510.0,0.0031]
[1643686547433,0.87495957,38511.0,38510.0,0.00462943]
[1643686547633,1.304704,38511.0,38510.0,0.00462943]
[1643686548282,0.064952,38509.0,38504.0,0.009286]
[1643686548482,0.6019,38508.0,38504.0,0.009286]
[1643686548878,0.6,38507.0,38504.0,0.009286]
[1643686549077,0.6519,38507.0,38504.0,0.009286]
[1643686549480,0.716855,38507.0,38504.0,0.009286]
[1643686550078,0.116855,38507.0,38504.0,0.009286]
[1643686550278,0.216855,38507.0,38504.0,0.009286]
[1643686550479,0.48256373,38507.0,38504.0,0.009286]
[1643686550682,0.48256373,38507.0,38504.0,0.002]
[1643686550887,0.48256373,38507.0,38496.0,0.047844]
[1643686550888,0.04989701,38497.0,38496.0,0.047844]
[1643686551086,0.04989701,38497.0,38493.0,0.0031]
[1643686551280,0.064957,38496.0,38493.0,0.0031]
[1643686551939,0.08329577,38495.0,38493.0,0.0031]
[1643686552140,0.55427525,38496.0,38493.0,0.00462353]
[1643686553337,0.55427525,38496.0,38493.0,0.00614706]
[1643686553539,0.55427525,38496.0,38493.0,0.00462353]
[1643686553743,0.60427525,38496.0,38493.0,0.00462353]
[1643686554340,0.08434625,38495.0,38493.0,0.0031]
[1643686554542,0.08434625,38495.0,38493.0,0.00462409]
[1643686555582,0.08434625,38495.0,38493.0,0.0031]
[1643686556083,0.60427525,38496.0,38493.0,0.0031]
[1643686556483,0.064957,38496.0,38493.0,0.0031]
[1643686556683,0.11485501,38497.0,38493.0,0.0031]
[1643686556883,0.11485501,38497.0,38493.0,0.00462409]
[1643686557082,0.11485501,38497.0,38494.0,0.449361]
[1643686557282,0.064958,38497.0,38494.0,0.449361]
[1643686557484,0.064958,38497.0,38494.0,0.68231433]
[1643686557682,0.064958,38497.0,38494.0,0.58231433]
[1643686558083,0.064958,38497.0,38496.0,0.1]
[1643686558283,0.064958,38497.0,38496.0,0.449361]
[1643686559031,0.064958,38497.0,38496.0,0.1]
[1643686560438,0.162815,38498.0,38496.0,0.1]
[1643686560439,0.0329,38498.0,38496.0,0.1]
[1643686560636,0.0329,38498.0,38497.0,2.505641]
[1643686561541,0.064938,38501.0,38497.0,1.128641]
[1643686561737,0.064938,38501.0,38499.0,0.1]
[1643686561936,0.064938,38501.0,38497.0,0.84421763]
[1643686562139,0.064938,38501.0,38500.0,0.66291177]
[1643686562337,0.064938,38501.0,38500.0,1.01227277]
[1643686562539,0.11483501,38501.0,38500.0,0.349361]
[1643686562792,0.11483501,38501.0,38498.0,0.064938]
[1643686562985,0.11483501,38501.0,38499.0,0.00150497]
[1643686563185,0.28794763,38500.0,38499.0,0.00150497]
[1643686563986,0.28794763,38500.0,38498.0,0.064938]
[1643686564189,0.34654409,38499.0,38498.0,0.00150499]
[1643686564885,0.09821185,38499.0,38498.0,0.00150499]
[1643686565085,0.09821185,38499.0,38497.0,0.77928]
[1643686565286,0.04989701,38498.0,38497.0,0.78078501]
[1643686566386,0.04989701,38498.0,38497.0,0.77928]
[1643686569843,0.04989701,38498.0,38497.0,1.128641]
[1643686571579,0.04989701,38498.0,38497.0,1.12935406]
[1643686572678,0.064948,38499.0,38497.0,1.19429806]
[1643686572877,0.064948,38499.0,38497.0,0.84493706]
[1643686573277,0.11478433,38499.0,38497.0,0.84493706]
[1643686576732,0.10978433,38499.0,38497.0,0.84493706]
[1643686577983,0.10895867,38499.0,38497.0,0.84493706]
[1643686578782,0.15895867,38499.0,38497.0,0.84493706]
[1643686580684,0.10895867,38499.0,38497.0,0.84493706]
[1643686583638,0.05912234,38499.0,38497.0,0.84493706]
[1643686583837,0.114937,38502.0,38498.0,0.349361]
[1643686584040,0.114937,38502.0,38497.0,0.84493706]
[1643686584237,0.04983633,38501.0,38497.0,0.84493706]
[1643686584437,0.114937,38502.0,38498.0,0.2660022]
[1643686584638,0.04983633,38501.0,38499.0,0.064937]
[1643686585286,0.04983633,38501.0,38499.0,0.06363203]
[1643686585984,0.05,38500.0,38499.0,0.064942]
[1643686587082,0.05,38500.0,38498.0,0.00061092]
[1643686588181,0.04983633,38498.0,38497.0,0.77999306]
[1643686588483,0.04983633,38498.0,38497.0,0.78121128]
[1643686589337,0.04983633,38498.0,38497.0,0.77999306]
[1643686591138,0.04983633,38498.0,38497.0,1.01322415]
[1643686595281,0.064946,38499.0,38497.0,1.07916815]
[1643686595480,0.21477633,38502.0,38497.0,1.07916815]
[1643686596730,0.064943,38501.0,38498.0,0.00128157]
[1643686596929,0.064943,38501.0,38499.0,0.064942]
[1643686597131,0.064943,38501.0,38498.0,0.00128157]
[1643686597833,0.16477633,38502.0,38497.0,1.01422415]
[1643686598035,0.16477633,38502.0,38498.0,0.00128157]
[1643686598237,0.16477633,38502.0,38498.0,0.06622557]
[1643686599034,0.16477633,38502.0,38498.0,0.064944]
[1643686599235,0.11477633,38502.0,38498.0,0.06622556]
[1643686599438,0.06494,38502.0,38498.0,0.06622556]
[1643686599639,0.05,38503.0,38498.0,1.74359478]
[1643686599841,0.05,38503.0,38499.0,0.349361]
[1643686600139,0.05,38503.0,38500.0,0.06493]
[1643686600582,0.05,38503.0,38501.0,0.26391216]
[1643686600788,0.05,38503.0,38502.0,0.349361]
[1643686600981,0.05,38503.0,38502.0,0.60306709]
[1643686603586,0.05,38503.0,38502.0,0.25370609]
[1643686603786,0.05,38503.0,38502.0,0.60306709]
[1643686604039,0.16943633,38511.0,38502.0,1.98006709]
[1643686604239,0.05,38509.0,38504.0,0.12985096]
[1643686604439,0.05,38509.0,38505.0,0.26201023]
[1643686604639,0.114928,38509.0,38505.0,0.26201023]
[1643686604842,0.01976983,38508.0,38505.0,0.26201023]
[1643686605040,0.01976983,38508.0,38506.0,0.31102594]
[1643686606645,0.01976983,38508.0,38506.0,0.37595694]
[1643686607343,0.06976983,38508.0,38506.0,0.37595694]
[1643686607543,0.01976983,38508.0,38506.0,0.37595694]
[1643686607794,0.114928,38509.0,38506.0,0.37595694]
[1643686609085,0.114928,38509.0,38506.0,0.37659409]
[1643686609884,0.114928,38509.0,38506.0,0.06556815]
[1643686610086,0.114928,38509.0,38502.0,0.129861]
[1643686610288,0.114928,38509.0,38506.0,0.00127367]
[1643686611291,0.064937,38506.0,38502.0,0.064936]
[1643686612538,0.064937,38506.0,38502.0,0.06635312]
[1643686612741,0.114927,38509.0,38502.0,0.06635312]
[1643686612942,0.114927,38509.0,38506.0,0.26906812]
[1643686613340,0.114927,38509.0,38505.0,0.06492604]
[1643686613742,0.3775226,38509.0,38506.0,0.00141699]
[1643686614241,0.65210744,38509.0,38506.0,0.00141699]
[1643686614642,0.05,38508.0,38506.0,0.00141699]
[1643686614843,0.05,38508.0,38503.0,0.12985]
[1643686615042,0.064935,38507.0,38506.0,0.00124153]
[1643686616183,0.05,38508.0,38505.0,1.441932]
[1643686616384,0.05,38508.0,38505.0,0.06617356]
[1643686617384,0.05,38508.0,38505.0,0.064932]
[1643686617584,0.05,38508.0,38505.0,0.06617356]
[1643686617784,0.114928,38509.0,38505.0,0.06617356]
[1643686618584,0.114928,38509.0,38505.0,0.064932]
[1643686618785,0.114928,38509.0,38505.0,0.06621302]
[1643686619641,0.114928,38509.0,38506.0,0.23823641]
[1643686619842,0.114928,38509.0,38507.0,0.064924]
[1643686620142,0.05,38509.0,38507.0,0.064924]
[1643686625488,0.045,38509.0,38507.0,0.064924]
[1643686625889,0.045,38509.0,38508.0,0.23940923]
[1643686626536,0.045,38509.0,38507.0,0.064924]
[1643686627137,0.045,38509.0,38508.0,0.2396562]
[1643686627736,0.045,38509.0,38508.0,0.5890172]
[1643686628338,0.045,38509.0,38508.0,0.2396562]
[1643686631487,0.064921,38511.0,38508.0,0.2396562]
[1643686631686,0.064921,38511.0,38509.0,0.064922]
[1643686640192,0.064921,38511.0,38508.0,0.05]
[1643686640390,0.064921,38511.0,38508.0,0.00124163]
[1643686641392,0.064921,38511.0,38507.0,0.064928]
[1643686641648,0.064921,38511.0,38508.0,0.0012809]
[1643686642754,0.064921,38511.0,38507.0,0.064928]
[1643686642951,0.064921,38511.0,38508.0,0.0012809]
[1643686643850,0.129852,38511.0,38505.0,0.064932]
[1643686644050,0.129852,38511.0,38508.0,0.0012809]
[1643686644252,0.064931,38510.0,38508.0,0.0012809]
[1643686644656,0.29299639,38509.0,38508.0,0.0012809]
[1643686644853,0.34299639,38509.0,38508.0,0.0012809]
[1643686645303,0.064939,38506.0,38501.0,0.064938]
[1643686645492,0.06479546,38506.0,38502.0,0.77918]
[1643686645692,0.06479546,38506.0,38503.0,0.349361]
[1643686646594,0.05979546,38506.0,38503.0,0.35063323]
[1643686646795,0.05979546,38506.0,38503.0,0.41556945]
[1643686646994,0.05979546,38506.0,38503.0,0.46556945]
[1643686647694,0.05979546,38506.0,38503.0,0.46429722]
[1643686647900,0.05979546,38506.0,38503.0,0.46557144]
[1643686648496,0.05979546,38506.0,38504.0,0.064935]
[1643686648696,0.05979546,38506.0,38505.0,0.349361]
[1643686649140,0.194812,38507.0,38505.0,0.349361]
[1643686649141,0.244812,38507.0,38505.0,0.349361]
[1643686649342,0.4019,38506.0,38503.0,0.00127422]
[1643686649540,0.064955,38505.0,38503.0,0.00127422]
[1643686649740,0.4519,38504.0,38503.0,0.00127422]
[1643686650240,0.79015092,38504.0,38503.0,0.00127422]
[1643686650444,0.5783843,38503.0,38502.0,0.78045424]
[1643686650640,0.35,38502.0,38497.0,0.00171306]
[1643686650840,0.0519,38501.0,38497.0,0.00171306]
[1643686652042,0.25238447,38498.0,38497.0,0.00171306]
[1643686652243,0.30238447,38498.0,38497.0,0.00171306]
[1643686653391,0.55239707,38498.0,38497.0,0.00171306]
[1643686653991,0.05,38498.0,38497.0,0.00171306]
[1643686654390,0.129918,38499.0,38497.0,0.00171306]
[1643686654391,0.179918,38499.0,38497.0,0.00171306]
[1643686656192,0.129918,38499.0,38495.0,0.06293438]
[1643686656396,0.064957,38499.0,38496.0,0.00154799]
[1643686657243,0.064957,38499.0,38496.0,0.06649499]
[1643686657442,0.064957,38499.0,38496.0,0.064947]
[1643686658943,0.129906,38499.0,38496.0,0.064947]
[1643686659545,0.064957,38499.0,38496.0,0.064947]
[1643686660798,0.25565471,38504.0,38496.0,1.63398056]
[1643686660799,0.00166371,38504.0,38496.0,1.63398056]
[1643686660998,1.2196,38509.0,38497.0,0.85]
[1643686660999,0.54776371,38508.0,38497.0,0.85]
[1643686661195,0.4437,38509.0,38498.0,0.3340674]
[1643686661394,0.05,38509.0,38499.0,0.501261]
[1643686661593,0.00166371,38504.0,38503.0,1.377]
[1643686661794,0.00166371,38504.0,38503.0,1.726361]
[1643686661990,0.00166371,38504.0,38503.0,1.776361]
[1643686662394,0.00166371,38504.0,38503.0,1.993185]
[1643686662593,0.05,38509.0,38503.0,1.993185]
[1643686662794,0.05,38509.0,38505.0,1.377]
[1643686662992,0.05,38509.0,38506.0,0.349361]
[1643686663193,0.05,38509.0,38507.0,0.56026005]
[1643686663394,0.05,38509.0,38508.0,0.61525149]
[1643686663597,0.05,38509.0,38508.0,0.66525149]
[1643686663794,0.0507407,38509.0,38508.0,0.66525149]
[1643686664436,0.0507407,38509.0,38508.0,0.31589049]
[1643686664640,0.05,38509.0,38508.0,0.31589049]
[1643686665639,0.05,38509.0,38508.0,0.05]
[1643686665839,0.05,38509.0,38508.0,0.2435463]
[1643686666838,0.05,38509.0,38508.0,0.2935463]
[1643686667896,0.05,38509.0,38507.0,0.064918]
[1643686668997,0.05,38509.0,38508.0,0.25348472]
[1643686669395,0.05,38509.0,38508.0,0.30348472]
[1643686672137,0.05,38509.0,38507.0,0.064918]
[1643686672337,0.05,38509.0,38507.0,0.114918]
[1643686673343,0.05,38509.0,38508.0,0.2408002]
[1643686673539,0.06659376,38510.0,38508.0,0.2408002]
[1643686673741,0.00166576,38510.0,38509.0,0.699361]
[1643686673943,0.00166576,38510.0,38509.0,1.7994394]
[1643686674138,0.00166576,38510.0,38509.0,1.8994394]
[1643686674340,0.00166576,38510.0,38509.0,3.007301]
[1643686674939,0.00166573,38511.0,38509.0,3.007301]
[1643686675299,0.00166573,38511.0,38510.0,2.241268]
[1643686675495,0.22194511,38520.0,38510.0,3.072188]
[1643686675695,0.064907,38518.0,38516.0,0.06490484]
[1643686676695,0.064907,38518.0,38516.0,0.33687379]
[1643686677295,0.064907,38518.0,38516.0,0.40177879]
[1643686677895,0.064907,38518.0,38516.0,0.45177879]
[1643686678496,0.064907,38518.0,38516.0,0.17980984]
[1643686678899,0.064907,38518.0,38516.0,0.064905]
[1643686680349,0.064907,38518.0,38516.0,0.12981329]
[1643686680749,0.064907,38518.0,38516.0,0.17981329]
[1643686681151,0.064907,38518.0,38517.0,0.24291322]
[1643686681551,0.064907,38518.0,38517.0,0.77888]
[1643686682251,0.064907,38518.0,38517.0,1.03092466]
[1643686682452,0.064907,38518.0,38517.0,1.38028566]
[1643686683288,0.0015211,38519.0,38517.0,1.38028566]
[1643686683489,0.0015211,38519.0,38518.0,0.70057835]
[1643686683788,0.0015211,38519.0,38518.0,1.52943835]
[1643686683988,0.129818,38521.0,38518.0,1.59434311]
[1643686684188,0.129818,38521.0,38519.0,0.064906]
[1643686684392,0.129818,38521.0,38520.0,0.5962969]
[1643686685189,0.129818,38521.0,38520.0,0.349361]
[1643686685391,0.129818,38521.0,38519.0,0.34281188]
[1643686685591,0.129818,38521.0,38520.0,0.24185605]
[1643686686194,0.129818,38521.0,38519.0,0.58215232]
[1643686686640,0.129818,38521.0,38519.0,0.34281188]
[1643686686840,0.129818,38521.0,38519.0,0.114906]
[1643686687048,0.129818,38521.0,38518.0,0.77886]
[1643686687240,0.129818,38521.0,38518.0,0.82886]
[1643686688040,0.13134106,38521.0,38518.0,0.82886]
[1643686688840,0.19625606,38521.0,38518.0,0.82886]
[1643686689643,0.19625606,38521.0,38518.0,0.77886]
[1643686690040,0.194733,38521.0,38518.0,0.77886]
[1643686690303,0.19625561,38521.0,38518.0,0.77886]
[1643686690793,0.24625561,38521.0,38518.0,0.77886]
[1643686691197,0.244733,38521.0,38518.0,0.77886]
[1643686691397,0.24625561,38521.0,38518.0,0.77886]
[1643686692496,0.5579122,38520.0,38518.0,0.77886]
[1643686696645,0.30364009,38520.0,38518.0,0.77886]
[1643686697548,0.24624328,38521.0,38518.0,0.77886]
[1643686697786,0.24617493,38521.0,38518.0,0.77886]
[1643686698289,0.24617493,38521.0,38518.0,0.76531364]
[1643686698490,0.24466465,38521.0,38518.0,0.76531364]
[1643686698687,0.24617493,38521.0,38518.0,0.76531364]
[1643686699690,0.24466465,38521.0,38518.0,0.76531364]
[1643686699890,0.19617493,38521.0,38518.0,0.76531364]
[1643686700290,0.13132828,38521.0,38518.0,0.76531364]
[1643686700891,0.24463703,38520.0,38518.0,0.76531364]
[1643686701292,0.29463703,38520.0,38518.0,0.76531364]
[1643686702145,0.05,38520.0,38518.0,0.76531364]
[1643686702348,0.13132497,38521.0,38518.0,0.76531364]
[1643686702546,0.13132497,38521.0,38519.0,0.24466095]
[1643686702852,0.13132497,38521.0,38518.0,0.76531364]
[1643686704650,0.129818,38521.0,38518.0,0.76531364]
[1643686704847,0.13117716,38521.0,38518.0,0.76531364]
[1643686705694,0.129818,38521.0,38518.0,0.76531364]
[1643686705892,0.13117716,38521.0,38518.0,0.76531364]
[1643686706995,0.129818,38521.0,38518.0,0.76531364]
[1643686707399,0.13117716,38521.0,38518.0,0.76531364]
[1643686707597,0.41323336,38521.0,38518.0,0.76531364]
[1643686707898,0.46323336,38521.0,38518.0,0.76531364]
[1643686708101,0.4618742,38521.0,38518.0,0.76531364]
[1643686708300,0.0519,38520.0,38518.0,0.76531364]
[1643686712345,0.0519,38520.0,38519.0,0.22460204]
[1643686713490,0.13119665,38521.0,38519.0,0.22460204]
[1643686714094,0.13119665,38521.0,38519.0,0.28950704]
[1643686714293,0.129818,38521.0,38519.0,0.28950704]
[1643686715094,0.129818,38521.0,38519.0,0.22460204]
[1643686715298,0.129818,38521.0,38518.0,0.76531364]
[1643686715900,0.179818,38521.0,38518.0,0.76531364]
[1643686716095,0.179818,38521.0,38519.0,0.24290617]
[1643686716298,0.179818,38521.0,38519.0,0.30172837]
[1643686717547,0.179818,38521.0,38518.0,0.76531364]
[1643686717948,0.07800523,38520.0,38518.0,0.76531364]
[1643686719148,0.41755146,38521.0,38518.0,0.76531364]
[1643686719149,0.129818,38521.0,38518.0,0.76531364]
[1643686719350,0.13129121,38521.0,38518.0,0.76531364]
[1643686719548,0.06637521,38521.0,38518.0,0.76531364]
[1643686719947,0.06626896,38521.0,38519.0,1.377]
[1643686720149,0.06626896,38521.0,38520.0,0.79237]
[1643686720399,0.06626896,38521.0,38520.0,0.89269699]
[1643686720802,0.06479575,38521.0,38520.0,0.89269699]
[1643686720998,0.13133061,38522.0,38520.0,0.79237]
[1643686721203,0.00152261,38522.0,38521.0,0.26709182]
[1643686721404,0.00152261,38522.0,38521.0,1.141711]
[1643686721602,0.00152261,38522.0,38521.0,1.191711]
[1643686722001,0.00152258,38523.0,38521.0,1.191711]
[1643686722301,0.00152258,38523.0,38522.0,0.064897]
[1643686722503,0.00152258,38523.0,38522.0,0.857227]
[1643686723302,0.06666866,38524.0,38522.0,0.79233]
[1643686724146,0.065146,38524.0,38522.0,0.79233]
[1643686729400,0.065146,38524.0,38522.0,0.857225]
[1643686730503,0.065146,38524.0,38522.0,1.17363102]
[1643686730703,0.065146,38524.0,38522.0,0.907225]
[1643686731000,0.00025,38524.0,38522.0,0.907225]
[1643686731201,0.00025,38524.0,38523.0,1.377]
[1643686731549,0.00025,38524.0,38523.0,2.518671]
[1643686731745,0.00025,38524.0,38523.0,2.618671]
[1643686732148,0.00025,38524.0,38523.0,2.770571]
[1643686732547,0.12974,38542.0,38523.0,2.86166574]
[1643686732747,0.02047,38535.0,38529.0,0.064872]
[1643686732948,0.02047,38535.0,38534.0,1.7534467]
[1643686733147,0.02047,38535.0,38534.0,2.5455267]
[1643686733347,0.02047,38535.0,38534.0,2.8948877]
[1643686733549,0.02047,38535.0,38534.0,2.9467877]
[1643686733748,0.02047,38535.0,38534.0,3.0467877]
[1643686737499,0.02047,38535.0,38534.0,1.193341]
[1643686737698,0.02047,38535.0,38534.0,1.141441]
[1643686737897,0.02047,38535.0,38534.0,0.79208]
[1643686738497,2.31478071,38537.0,38534.0,0.79208]
[1643686738697,0.05,38536.0,38534.0,0.79208]
[1643686740849,0.05166719,38536.0,38534.0,0.79208]
[1643686741551,0.05,38536.0,38534.0,0.79208]
[1643686742453,1.32466113,38535.0,38534.0,0.79208]
[1643686742653,1.32466113,38535.0,38517.0,0.12979231]
[1643686742898,0.064906,38530.0,38517.0,0.12979231]
[1643686743100,0.259624,38532.0,38514.0,0.6145]
[1643686743101,0.34319162,38529.0,38514.0,0.1145]
[1643686743299,0.25219446,38521.0,38516.0,0.312063]
[1643686743598,0.30409446,38521.0,38517.0,0.349361]
[1643686743996,0.35409446,38521.0,38517.0,0.349361]
[1643686744397,0.35409446,38521.0,38517.0,0.479172]
[1643686744599,0.35546082,38521.0,38517.0,0.479172]
[1643686744797,0.05326636,38521.0,38517.0,0.479172]
[1643686745000,0.18309436,38521.0,38517.0,0.479172]
[1643686745698,0.181728,38521.0,38517.0,0.479172]
[1643686745897,0.18311792,38521.0,38517.0,0.479172]
[1643686746742,0.181728,38521.0,38517.0,0.479172]
[1643686747145,0.18311792,38521.0,38517.0,0.479172]
[1643686747542,0.11820392,38521.0,38517.0,0.479172]
[1643686747943,0.116814,38521.0,38517.0,0.479172]
[1643686748444,0.11826814,38521.0,38517.0,0.479172]
[1643686749243,0.116814,38521.0,38517.0,0.479172]
[1643686749444,0.11826284,38521.0,38517.0,0.479172]
[1643686750695,0.11826284,38521.0,38517.0,0.349361]
[1643686750696,0.116814,38521.0,38517.0,0.349361]
[1643686750893,0.11826284,38521.0,38515.0,0.77879]
[1643686751193,0.16826284,38521.0,38515.0,0.77879]
[1643686751393,0.22625145,38518.0,38515.0,0.77879]
[1643686751599,0.40799145,38518.0,38516.0,0.349361]
[1643686751796,0.45799145,38518.0,38515.0,0.77879]
[1643686752197,0.12065077,38517.0,38515.0,0.77879]
[1643686752493,0.0519,38516.0,38515.0,0.77879]
[1643686755048,0.17978454,38516.0,38515.0,0.77879]
[1643686755248,1.77878454,38516.0,38515.0,0.77879]
[1643686755647,1.87878454,38516.0,38515.0,0.77879]
[1643686757153,1.97878454,38516.0,38515.0,0.77879]
[1643686757354,1.87878454,38516.0,38515.0,0.77879]
[1643686757652,1.97878454,38516.0,38515.0,0.77879]
[1643686757901,0.30920421,38513.0,38507.0,0.0011]
[1643686758200,0.2302166,38512.0,38507.0,0.0011]
[1643686758398,0.649,38510.0,38507.0,0.0011]
[1643686758598,0.3221951,38509.0,38507.0,0.0011]
[1643686758803,0.73066487,38508.0,38507.0,0.0011]
[1643686758999,0.78256487,38508.0,38507.0,0.0011]
[1643686759199,0.43256487,38508.0,38507.0,0.0011]
[1643686759398,0.5226136,38508.0,38507.0,0.0011]
[1643686759798,0.52226713,38508.0,38507.0,0.0011]
[1643686760799,0.40291503,38508.0,38507.0,0.0011]
[1643686762247,0.70291503,38508.0,38507.0,0.0011]
[1643686762447,0.40291503,38508.0,38507.0,0.0011]
[1643686763248,1.05191503,38508.0,38507.0,0.0011]
[1643686767295,1.05191503,38508.0,38499.0,0.00127036]
[1643686767296,0.85,38507.0,38499.0,0.00127036]
[1643686767497,0.85,38507.0,38496.0,0.2692525]
[1643686767498,0.181813,38506.0,38496.0,0.002]
[1643686767698,0.116857,38506.0,38499.0,0.00063519]
[1643686767995,0.649,38502.0,38499.0,0.00063519]
[1643686768195,0.34291054,38501.0,38499.0,0.00063519]
[1643686768594,0.34291054,38501.0,38496.0,0.002]
[1643686768799,0.40786654,38501.0,38498.0,0.0006352]
[1643686769843,0.40786654,38501.0,38496.0,0.002]
[1643686770047,0.40786654,38501.0,38498.0,0.00127041]
[1643686770643,0.40786654,38501.0,38495.0,0.00137041]
[1643686772146,0.28879346,38497.0,38495.0,0.00137041]
[1643686772346,0.40786654,38501.0,38495.0,0.00137041]
[1643686772347,0.0519,38496.0,38495.0,0.00137041]
[1643686773793,0.1280161,38496.0,38495.0,0.00137041]
[1643686775401,0.0761161,38496.0,38495.0,0.00137041]
[1643686778063,0.1280161,38496.0,38495.0,0.00137041]
[1643686779459,0.0519,38496.0,38495.0,0.00137041]
[1643686779859,0.0519,38496.0,38495.0,0.35073141]
[1643686780062,0.1171,38501.0,38495.0,0.35073141]
[1643686780323,0.2171,38501.0,38495.0,0.35073141]
[1643686780512,0.46076274,38501.0,38495.0,0.35073141]
[1643686780715,0.46076274,38501.0,38495.0,0.00137041]
[1643686780911,0.46076274,38501.0,38496.0,0.00154996]
[1643686780912,0.08195275,38498.0,38496.0,0.00154996]
[1643686781812,0.08195275,38498.0,38495.0,0.00137041]
[1643686782014,0.08195275,38498.0,38495.0,0.00292041]
[1643686783012,0.08195275,38498.0,38495.0,0.00137041]
[1643686783215,0.08195275,38498.0,38495.0,0.00292043]
[1643686784250,0.08195275,38498.0,38495.0,0.00137041]
[1643686784450,0.08195275,38498.0,38495.0,0.00292043]
[1643686784654,0.2171,38501.0,38495.0,0.00292043]
[1643686785051,0.2171,38501.0,38496.0,0.349361]
[1643686785452,0.1,38501.0,38496.0,0.399361]
[1643686785652,0.1,38501.0,38497.0,0.064943]
[1643686785856,0.0949036,38499.0,38497.0,0.064943]
[1643686786452,0.0949036,38499.0,38496.0,0.00154996]
[1643686786654,0.0949036,38499.0,38495.0,0.00137041]
[1643686786854,0.0949036,38499.0,38496.0,0.00154996]
[1643686787900,0.0949036,38499.0,38495.0,0.06631941]
[1643686788099,0.0949036,38499.0,38496.0,0.00154998]
[1643686789098,0.0949036,38499.0,38495.0,0.06631941]
[1643686789298,0.0949036,38499.0,38496.0,0.00154998]
[1643686790300,0.34802426,38499.0,38495.0,0.00137041]
[1643686790500,0.0519,38498.0,38496.0,0.00154998]
[1643686791660,0.0519,38498.0,38495.0,0.00292041]
[1643686791860,0.0519,38498.0,38496.0,0.22219397]
[1643686792962,0.05178363,38498.0,38496.0,0.22219397]
[1643686794061,0.05178363,38498.0,38495.0,0.00292041]
[1643686795160,0.05178363,38498.0,38495.0,0.00137041]
[1643686795395,0.05178363,38498.0,38495.0,0.00292043]
[1643686795896,0.1598586,38499.0,38495.0,0.00284931]
[1643686796299,0.1598586,38499.0,38495.0,0.00129929]
[1643686796695,0.1598586,38499.0,38495.0,0.00284929]
[1643686797694,0.1598586,38499.0,38495.0,0.00439929]
[1643686797895,0.1598586,38499.0,38495.0,0.00284929]
[1643686798498,0.0949036,38499.0,38495.0,0.00284929]
[1643686798698,0.0949036,38499.0,38495.0,0.00129929]
[1643686798900,0.0949036,38499.0,38495.0,0.00284929]
[1643686799746,0.0949036,38499.0,38495.0,0.30091784]
[1643686799948,0.0949036,38499.0,38495.0,0.29936784]
[1643686800146,0.0949036,38499.0,38495.0,0.30111084]
[1643686800346,0.0949036,38499.0,38495.0,0.3660566]
[1643686800545,0.0949036,38499.0,38495.0,0.4310026]
[1643686801147,0.0949036,38499.0,38495.0,0.4294526]
[1643686801346,0.0949036,38499.0,38495.0,0.4310026]
[1643686802447,0.0949036,38499.0,38495.0,0.4294526]
[1643686802647,0.0949036,38499.0,38495.0,0.4310026]
[1643686803502,0.0949036,38499.0,38495.0,0.05149229]
[1643686803702,0.1598556,38499.0,38495.0,0.00300949]
[1643686804698,0.1598556,38499.0,38495.0,0.00149229]
[1643686804901,0.1598556,38499.0,38495.0,0.00300949]
[1643686805200,0.0949036,38499.0,38495.0,0.00300949]
[1643686805802,0.1449036,38499.0,38495.0,0.00300949]
[1643686806003,0.1449036,38499.0,38495.0,0.00149229]
[1643686806203,0.1449036,38499.0,38495.0,0.00300949]
[1643686807148,0.1449036,38499.0,38495.0,0.00149229]
[1643686807348,0.25225725,38498.0,38495.0,0.00300949]
[1643686807948,0.42455541,38499.0,38495.0,0.00300949]
[1643686808148,0.24954987,38498.0,38495.0,0.00300949]
[1643686808348,0.24954987,38498.0,38495.0,0.00149229]
[1643686808349,0.0519,38498.0,38495.0,0.00149229]
[1643686808550,0.0519,38498.0,38495.0,0.0030284]
[1643686809251,0.116855,38498.0,38495.0,0.0030284]
[1643686809651,0.116855,38498.0,38495.0,0.00149229]
[1643686809849,0.116855,38498.0,38495.0,0.00302841]
[1643686810702,0.116855,38498.0,38495.0,0.00149229]
[1643686810903,0.116855,38498.0,38495.0,0.00302841]
[1643686811703,0.166855,38498.0,38495.0,0.00302841]
[1643686811906,0.166855,38498.0,38495.0,0.00149229]
[1643686812103,0.41710744,38498.0,38495.0,0.00302524]
[1643686812302,0.166855,38498.0,38495.0,0.00302524]